fUST/lending_fUST_20250727
["ID","MTS","AMOUNT","RATE_DAILY","PERIOD"]
[375233700,1753593054897,-460.0,0.0002,2]
[375233701,1753593054908,-1774.4,0.0002,2]
[375233702,1753593054919,-488.35,0.0002,2]
[375233703,1753593054931,-460.0,0.0002,2]
[375233704,1753593054941,-460.0,0.0002,2]
[375233705,1753593054951,-642.71,0.0002,2]
[375233706,1753593054960,-460.0,0.0002,2]
[375233707,1753593054971,-471.76,0.0002,2]
[375233708,1753593054981,-460.0,0.0002,2]
[375233709,1753593054990,-460.0,0.0002,2]
[375233710,1753593055000,-460.0,0.0002,2]
[375233711,1753593055009,-460.0,0.0002,2]
[375233712,1753593055018,-1006.7,0.0002,2]
[375233713,1753593055028,-500.0,0.0002,2]
[375233714,1753593055037,-460.0,0.0002,2]
[375233715,1753593055046,-595.02,0.0002,2]
[375233716,1753593055056,-460.0,0.0002,2]
[375233717,1753593055065,-460.0,0.0002,2]
[375233718,1753593055075,-317.47886199,0.0002,2]
[375233719,1753593055084,-460.0,0.0002,2]
[375233720,1753593055094,-460.0,0.0002,2]
[375233721,1753593055103,-584.65265206,0.0002,2]
[375233722,1753593055112,-460.0,0.0002,2]
[375233723,1753593055121,-460.0,0.0002,2]
[375233724,1753593055130,-486.48,0.0002,2]
[375233725,1753593055139,-460.0,0.0002,2]
[375233726,1753593055149,-460.0,0.0002,2]
[375233727,1753593055159,-460.0,0.0002,2]
[375233728,1753593055168,-494.61,0.0002,2]
[375233729,1753593055178,-460.0,0.0002,2]
[375233730,1753593055187,-460.0,0.0002,2]
[375233731,1753593055197,-460.0,0.0002,2]
[375233732,1753593055206,-460.0,0.0002,2]
[375233733,1753593055215,-514.97,0.0002,2]
[375233734,1753593055224,-460.0,0.0002,2]
[375233735,1753593055234,-460.0,0.0002,2]
[375233736,1753593055243,-460.0,0.0002,2]
[375233737,1753593055252,-460.0,0.0002,2]
[375233738,1753593055262,-460.0,0.0002,2]
[375233739,1753593055271,-443.22857386,0.0002,2]
[375233740,1753593055280,-460.0,0.0002,2]
[375233741,1753593055289,-460.0,0.0002,2]
[375233742,1753593055299,-460.0,0.0002,2]
[375233743,1753593055308,-460.0,0.0002,2]
[375233744,1753593055318,-460.0,0.0002,2]
[375233745,1753593055327,-460.0,0.0002,2]
[375233746,1753593055336,-460.0,0.0002,2]
[375233747,1753593055345,-1152.42,0.0002,2]
[375233748,1753593055355,-460.0,0.0002,2]
[375233749,1753593055364,-460.0,0.0002,2]
[375233750,1753593055373,-530.21,0.0002,2]
[375233751,1753593055382,-460.0,0.0002,2]
[375233752,1753593055392,-460.0,0.0002,2]
[375233753,1753593055402,-460.0,0.0002,2]
[375233754,1753593055411,-460.0,0.0002,2]
[375233755,1753593055420,-460.0,0.0002,2]
[375233756,1753593055429,-460.0,0.0002,2]
[375233757,1753593055439,-320.21407112,0.0002,2]
[375233758,1753593055448,-218.71255318,0.0002,2]
[375233759,1753593055457,-592.64,0.0002,2]
[375233760,1753593055467,-460.0,0.0002,2]
[375233761,1753593055476,-460.0,0.0002,2]
[375233762,1753593055486,-460.0,0.0002,2]
[375233763,1753593055495,-460.0,0.0002,2]
[375233764,1753593055510,-542.88,0.0002,2]
[375233765,1753593055519,-460.0,0.0002,2]
[375233766,1753593055530,-460.0,0.0002,2]
[375233767,1753593055539,-460.0,0.0002,2]
[375233768,1753593055548,-477.11150348,0.0002,2]
[375233769,1753593055558,-460.0,0.0002,2]
[375233770,1753593055567,-460.0,0.0002,2]
[375233771,1753593055577,-525.34,0.0002,2]
[375233772,1753593055587,-460.0,0.0002,2]
[375233773,1753593055596,-460.0,0.0002,2]
[375233774,1753593055605,-460.0,0.0002,2]
[375233775,1753593055615,-460.0,0.0002,2]
[375233776,1753593055624,-151.0,0.000201,3]
[375233777,1753593055633,-4052.07933436,0.00020107,2]
[375233778,1753593055643,-225.050709,0.00020187,2]
[375233779,1753593055652,-2000.0,0.00020216,2]
[375233780,1753593055661,-160.0,0.00020239,2]
[375233781,1753593055671,-12632.25855046,0.00020239,2]
[375233782,1753593055680,-160.0,0.00020239,2]
[375233783,1753593055689,-840.75038169,0.00020239,2]
[375233784,1753593055698,-160.0,0.00020239,2]
[375233785,1753593055707,-160.0,0.00020239,2]
[375233786,1753593055716,-231.30466539,0.00020239,2]
[375233787,1753593055725,-160.0,0.00020239,2]
[375233788,1753593055735,-216.01841554,0.00020241,2]
[375233789,1753593055745,-214.84090509,0.00020241,2]
[375233790,1753593055754,-160.0,0.00020241,2]
[375233791,1753593055764,-477.07289566,0.00020241,2]
[375233792,1753593055773,-420.0,0.00020246,2]
[375233793,1753593055782,-420.0,0.00020246,2]
[375233794,1753593055791,-420.0,0.00020246,2]
[375233795,1753593055801,-347.0,0.00020246,2]
[375233796,1753593055810,-420.0,0.00020246,2]
[375233797,1753593055820,-1680.0,0.00020247,2]
[375233798,1753593055830,-500.0,0.00020268,2]
[375233799,1753593055839,-1000.0,0.00020268,2]
[375233800,1753593055849,-260.0,0.00020271,2]
[375233801,1753593055859,-460.0,0.00020273,2]
[375233802,1753593055868,-460.0,0.00020273,2]
[375233803,1753593055878,-460.0,0.00020273,2]
[375233804,1753593055968,-460.0,0.00020273,2]
[375233805,1753593055978,-468.68120064,0.00020273,2]
[375233806,1753593055988,-460.0,0.00020273,2]
[375233807,1753593055997,-468.15217787,0.00020273,2]
[375233808,1753593056006,-460.0,0.00020273,2]
[375233809,1753593056016,-460.0,0.00020273,2]
[375233810,1753593056026,-460.0,0.00020273,2]
[375233811,1753593056037,-2979.79,0.00020273,2]
[375233812,1753593056047,-460.0,0.00020273,2]
[375233813,1753593056060,-460.0,0.00020273,2]
[375233814,1753593056071,-460.0,0.00020273,2]
[375233815,1753593056081,-460.0,0.00020273,2]
[375233816,1753593056091,-460.0,0.00020273,2]
[375233817,1753593056103,-460.0,0.00020273,2]
[375233818,1753593056112,-460.0,0.00020273,2]
[375233819,1753593056122,-460.0,0.00020273,2]
[375233820,1753593056132,-464.08888431,0.00020273,2]
[375233821,1753593056141,-460.0,0.00020273,2]
[375233822,1753593056152,-460.0,0.00020273,2]
[375233823,1753593056162,-460.0,0.00020273,2]
[375233824,1753593056173,-460.0,0.00020273,2]
[375233825,1753593056183,-1563.98,0.00020273,2]
[375233826,1753593056194,-460.0,0.00020273,2]
[375233827,1753593056204,-460.0,0.00020273,2]
[375233828,1753593056214,-460.0,0.00020273,2]
[375233829,1753593056224,-460.0,0.00020273,2]
[375233830,1753593056234,-460.0,0.00020273,2]
[375233831,1753593056244,-460.0,0.00020273,2]
[375233832,1753593056253,-460.0,0.00020273,2]
[375233833,1753593056262,-443.00575388,0.00020273,2]
[375233834,1753593056271,-460.0,0.00020273,2]
[375233835,1753593056281,-460.0,0.00020273,2]
[375233836,1753593056290,-460.0,0.00020273,2]
[375233837,1753593056299,-644.44,0.00020273,2]
[375233838,1753593056309,-460.0,0.00020273,2]
[375233839,1753593056318,-460.0,0.00020273,2]
[375233840,1753593056327,-460.0,0.00020273,2]
[375233841,1753593056337,-460.0,0.00020273,2]
[375233842,1753593056346,-460.0,0.00020273,2]
[375233843,1753593056355,-460.0,0.00020273,2]
[375233844,1753593056365,-460.0,0.00020273,2]
[375233845,1753593056375,-460.0,0.00020273,2]
[375233846,1753593056384,-460.0,0.00020273,2]
[375233847,1753593056394,-460.0,0.00020273,2]
[375233848,1753593056403,-460.0,0.00020273,2]
[375233849,1753593056413,-460.0,0.00020273,2]
[375233850,1753593056422,-541.95,0.00020273,2]
[375233851,1753593056431,-568.64,0.00020273,2]
[375233852,1753593056441,-460.0,0.00020273,2]
[375233853,1753593056451,-460.0,0.00020273,2]
[375233854,1753593056460,-460.0,0.00020273,2]
[375233855,1753593056469,-460.0,0.00020273,2]
[375233856,1753593056479,-460.0,0.00020273,2]
[375233857,1753593056489,-464.25457231,0.00020273,2]
[375233858,1753593056498,-460.0,0.00020273,2]
[375233859,1753593056512,-460.0,0.00020273,2]
[375233860,1753593056522,-460.0,0.00020273,2]
[375233861,1753593056531,-460.0,0.00020273,2]
[375233862,1753593056540,-460.0,0.00020273,2]
[375233863,1753593056551,-492.49,0.00020273,2]
[375233864,1753593056561,-460.0,0.00020273,2]
[375233865,1753593056570,-460.0,0.00020273,2]
[375233866,1753593056580,-460.0,0.00020273,2]
[375233867,1753593056590,-460.0,0.00020273,2]
[375233868,1753593056600,-460.0,0.00020273,2]
[375233869,1753593056610,-460.0,0.00020273,2]
[375233870,1753593056622,-460.0,0.00020273,2]
[375233871,1753593056631,-460.0,0.00020273,2]
[375233872,1753593056640,-460.0,0.00020273,2]
[375233873,1753593056650,-1452.54,0.00020273,2]
[375233874,1753593056660,-460.0,0.00020273,2]
[375233875,1753593056670,-460.0,0.00020273,2]
[375233876,1753593056679,-460.0,0.00020273,2]
[375233877,1753593056689,-460.0,0.00020273,2]
[375233878,1753593056700,-408.84163523,0.00020273,2]
[375233879,1753593056709,-460.0,0.00020273,2]
[375233880,1753593056718,-460.0,0.00020273,2]
[375233881,1753593056728,-460.0,0.00020273,2]
[375233882,1753593056738,-460.0,0.00020273,2]
[375233883,1753593056747,-460.0,0.00020273,2]
[375233884,1753593056757,-460.0,0.00020273,2]
[375233885,1753593056767,-460.0,0.00020273,2]
[375233886,1753593056776,-543.35,0.00020273,2]
[375233887,1753593056786,-587.41744654,0.00020273,2]
[375233888,1753593056795,-196.0970772,0.00020273,2]
[375233889,1753593056804,-460.0,0.00020273,2]
[375233890,1753593056814,-960.07,0.00020273,2]
[375233891,1753593056823,-460.0,0.00020273,2]
[375233892,1753593056833,-460.0,0.00020273,2]
[375233893,1753593056842,-460.0,0.00020273,2]
[375233894,1753593056852,-460.0,0.00020273,2]
[375233895,1753593056863,-460.0,0.00020273,2]
[375233896,1753593056872,-596.69,0.00020273,2]
[375233897,1753593056881,-460.0,0.00020273,2]
[375233898,1753593056891,-460.0,0.00020273,2]
[375233899,1753593056901,-460.0,0.00020273,2]
[375233900,1753593056910,-460.0,0.00020273,2]
[375233901,1753593056919,-460.0,0.00020273,2]
[375233902,1753593056929,-460.0,0.00020273,2]
[375233903,1753593056938,-460.0,0.00020273,2]
[375233904,1753593056950,-460.0,0.00020273,2]
[375233905,1753593056960,-460.0,0.00020273,2]
[375233906,1753593056969,-242.60003512,0.00020273,2]
[375233907,1753593056978,-460.0,0.00020273,2]
[375233908,1753593056988,-465.57702629,0.00020273,2]
[375233909,1753593056997,-520.04,0.00020273,2]
[375233910,1753593057007,-460.0,0.00020273,2]
[375233911,1753593057016,-548.23982907,0.00020273,2]
[375233912,1753593057025,-460.0,0.00020273,2]
[375233913,1753593057035,-460.0,0.00020273,2]
[375233914,1753593057044,-1711.83,0.00020273,2]
[375233915,1753593057054,-460.0,0.00020273,2]
[375233916,1753593057063,-460.0,0.00020273,2]
[375233917,1753593057072,-1410.74,0.00020273,2]
[375233918,1753593057082,-464.24773841,0.00020273,2]
[375233919,1753593057091,-510.90898875,0.00020273,2]
[375233920,1753593057100,-492.9,0.00020273,2]
[375233921,1753593057109,-460.0,0.00020273,2]
[375233922,1753593057119,-478.9,0.00020273,2]
[375233923,1753593057129,-1486.35,0.00020273,2]
[375233924,1753593057138,-460.0,0.00020273,2]
[375233925,1753593057148,-460.0,0.00020273,2]
[375233926,1753593057157,-727.55,0.00020273,2]
[375233927,1753593057166,-460.0,0.00020273,2]
[375233928,1753593057176,-479.82,0.00020273,2]
[375233929,1753593057185,-460.0,0.00020273,2]
[375233930,1753593057195,-1353.54,0.00020273,2]
[375233931,1753593057205,-460.0,0.00020273,2]
[375233932,1753593057214,-1774.4,0.00020273,2]
[375233933,1753593057223,-488.35,0.00020273,2]
[375233934,1753593057233,-460.0,0.00020273,2]
[375233935,1753593057242,-460.0,0.00020273,2]
[375233936,1753593057252,-642.71,0.00020273,2]
[375233937,1753593057262,-460.0,0.00020273,2]
[375233938,1753593057271,-471.76,0.00020273,2]
[375233939,1753593057280,-460.0,0.00020273,2]
[375233940,1753593057290,-460.0,0.00020273,2]
[375233941,1753593057299,-460.0,0.00020273,2]
[375233942,1753593057308,-460.0,0.00020273,2]
[375233943,1753593057317,-1006.7,0.00020273,2]
[375233944,1753593057326,-500.0,0.00020273,2]
[375233945,1753593057335,-460.0,0.00020273,2]
[375233946,1753593057344,-595.02,0.00020273,2]
[375233947,1753593057353,-460.0,0.00020273,2]
[375233948,1753593057362,-460.0,0.00020273,2]
[375233949,1753593057371,-460.0,0.00020273,2]
[375233950,1753593057380,-460.0,0.00020273,2]
[375233951,1753593057390,-467.62948119,0.00020273,2]
[375233952,1753593057399,-486.48,0.00020273,2]
[375233953,1753593057408,-460.0,0.00020273,2]
[375233954,1753593057418,-460.0,0.00020273,2]
[375233955,1753593057427,-460.0,0.00020273,2]
[375233956,1753593057436,-494.61,0.00020273,2]
[375233957,1753593057446,-460.0,0.00020273,2]
[375233958,1753593057455,-460.0,0.00020273,2]
[375233959,1753593057465,-460.0,0.00020273,2]
[375233960,1753593057474,-514.97,0.00020273,2]
[375233961,1753593057483,-460.0,0.00020273,2]
[375233962,1753593057493,-460.0,0.00020273,2]
[375233963,1753593057506,-460.0,0.00020273,2]
[375233964,1753593057516,-460.0,0.00020273,2]
[375233965,1753593057526,-460.0,0.00020273,2]
[375233966,1753593057535,-460.0,0.00020273,2]
[375233967,1753593057545,-460.0,0.00020273,2]
[375233968,1753593057555,-460.0,0.00020273,2]
[375233969,1753593057564,-460.0,0.00020273,2]
[375233970,1753593057574,-460.0,0.00020273,2]
[375233971,1753593057584,-460.0,0.00020273,2]
[375233972,1753593057594,-460.0,0.00020273,2]
[375233973,1753593057603,-460.0,0.00020273,2]
[375233974,1753593057613,-1152.42,0.00020273,2]
[375233975,1753593057623,-460.0,0.00020273,2]
[375233976,1753593057632,-460.0,0.00020273,2]
[375233977,1753593057642,-530.21,0.00020273,2]
[375233978,1753593057651,-460.0,0.00020273,2]
[375233979,1753593057661,-460.0,0.00020273,2]
[375233980,1753593057746,-460.0,0.00020273,2]
[375233981,1753593057756,-460.0,0.00020273,2]
[375233982,1753593057765,-460.0,0.00020273,2]
[375233983,1753593057775,-343.5889549,0.00020273,2]
[375233984,1753593057784,-592.64,0.00020273,2]
[375233985,1753593057793,-460.0,0.00020273,2]
[375233986,1753593057802,-460.0,0.00020273,2]
[375233987,1753593057811,-460.0,0.00020273,2]
[375233988,1753593057821,-457.75126319,0.00020273,2]
[375233989,1753593057831,-542.88,0.00020273,2]
[375233990,1753593057841,-460.0,0.00020273,2]
[375233991,1753593057852,-460.0,0.00020273,2]
[375233992,1753593057863,-460.0,0.00020273,2]
[375233993,1753593057875,-525.34,0.00020273,2]
[375233994,1753593057884,-460.0,0.00020273,2]
[375233995,1753593057893,-460.0,0.00020273,2]
[375233996,1753593057903,-460.0,0.00020273,2]
[375233997,1753593057912,-460.0,0.00020273,2]
[375233998,1753593057922,-460.0,0.00020273,2]
[375233999,1753593057931,-2587.63595508,0.00020304,2]
[375234000,1753593057940,-1680.0,0.00020345,2]
[375234001,1753593057950,-1785.25895138,0.00020346,2]
[375234002,1753593057959,-4052.07933436,0.00020348,3]
[375234003,1753593057970,-151.0,0.000204,4]
[375234004,1753593057980,-3737.44,0.00020546,2]
[375234005,1753593057990,-1022.23,0.00020546,2]
[375234006,1753593058000,-1133.15,0.00020546,2]
[375234007,1753593058011,-460.0,0.00020546,2]
[375234008,1753593058022,-1780.8,0.00020546,2]
[375234009,1753593058032,-460.0,0.00020546,2]
[375234010,1753593058043,-151.234386,0.00020546,2]
[375234011,1753593058052,-528.49,0.00020546,2]
[375234012,1753593058062,-151.0,0.00020546,2]
[375234013,1753593058071,-151.0,0.00020546,2]
[375234014,1753593058080,-151.0,0.00020546,2]
[375234015,1753593058090,-460.0,0.00020546,2]
[375234016,1753593058099,-151.0,0.00020546,2]
[375234017,1753593058108,-151.0,0.00020546,2]
[375234018,1753593058117,-460.0,0.00020547,2]
[375234019,1753593058127,-460.0,0.00020547,2]
[375234020,1753593058136,-473.29424281,0.00020547,2]
[375234021,1753593058145,-460.0,0.00020547,2]
[375234022,1753593058157,-363.45308898,0.00020547,2]
[375234023,1753593058167,-460.0,0.00020547,2]
[375234024,1753593058178,-460.0,0.00020547,2]
[375234025,1753593058188,-460.0,0.00020547,2]
[375234026,1753593058198,-2979.79,0.00020547,2]
[375234027,1753593058208,-578.36513396,0.00020547,2]
[375234028,1753593058218,-394.4303031,0.00020547,2]
[375234029,1753593058227,-460.0,0.00020547,2]
[375234030,1753593058237,-460.0,0.00020547,2]
[375234031,1753593058246,-460.0,0.00020547,2]
[375234032,1753593058256,-460.0,0.00020547,2]
[375234033,1753593058266,-267.41374248,0.00020547,2]
[375234034,1753593058278,-326.26034485,0.00020547,2]
[375234035,1753593058290,-460.0,0.00020547,2]
[375234036,1753593058301,-460.0,0.00020547,2]
[375234037,1753593058310,-460.0,0.00020547,2]
[375234038,1753593058319,-1563.98,0.00020547,2]
[375234039,1753593058328,-460.0,0.00020547,2]
[375234040,1753593058337,-460.0,0.00020547,2]
[375234041,1753593058347,-460.0,0.00020547,2]
[375234042,1753593058356,-460.0,0.00020547,2]
[375234043,1753593058365,-299.1,0.00020547,2]
[375234044,1753593058374,-460.0,0.00020547,2]
[375234045,1753593058384,-460.0,0.00020547,2]
[375234046,1753593058393,-460.0,0.00020547,2]
[375234047,1753593058402,-460.0,0.00020547,2]
[375234048,1753593058412,-644.44,0.00020547,2]
[375234049,1753593058422,-460.0,0.00020547,2]
[375234050,1753593058431,-460.0,0.00020547,2]
[375234051,1753593058440,-460.0,0.00020547,2]
[375234052,1753593058450,-460.0,0.00020547,2]
[375234053,1753593058460,-214.18950482,0.00020547,2]
[375234054,1753593058470,-460.0,0.00020547,2]
[375234055,1753593058480,-460.0,0.00020547,2]
[375234056,1753593058490,-460.0,0.00020547,2]
[375234057,1753593058500,-460.0,0.00020547,2]
[375234058,1753593058514,-335.90476564,0.00020547,2]
[375234059,1753593058524,-473.26595617,0.00020547,2]
[375234060,1753593058535,-541.95,0.00020547,2]
[375234061,1753593058544,-568.64,0.00020547,2]
[375234062,1753593058555,-462.65776151,0.00020547,2]
[375234063,1753593058565,-460.0,0.00020547,2]
[375234064,1753593058574,-460.0,0.00020547,2]
[375234065,1753593058586,-460.0,0.00020547,2]
[375234066,1753593058596,-460.0,0.00020547,2]
[375234067,1753593058605,-460.0,0.00020547,2]
[375234068,1753593058615,-460.0,0.00020547,2]
[375234069,1753593058625,-492.49,0.00020547,2]
[375234070,1753593058634,-460.0,0.00020547,2]
[375234071,1753593058643,-256.17722334,0.00020547,2]
[375234072,1753593058652,-460.0,0.00020547,2]
[375234073,1753593058662,-469.10671878,0.00020547,2]
[375234074,1753593058671,-460.0,0.00020547,2]
[375234075,1753593058681,-460.0,0.00020547,2]
[375234076,1753593058690,-460.0,0.00020547,2]
[375234077,1753593058700,-460.0,0.00020547,2]
[375234078,1753593058710,-1452.54,0.00020547,2]
[375234079,1753593058720,-460.0,0.00020547,2]
[375234080,1753593058729,-460.0,0.00020547,2]
[375234081,1753593058739,-460.0,0.00020547,2]
[375234082,1753593058748,-460.0,0.00020547,2]
[375234083,1753593058760,-460.0,0.00020547,2]
[375234084,1753593058770,-460.0,0.00020547,2]
[375234085,1753593058780,-460.0,0.00020547,2]
[375234086,1753593058790,-460.0,0.00020547,2]
[375234087,1753593058800,-151.968557,0.00020547,2]
[375234088,1753593058809,-460.0,0.00020547,2]
[375234089,1753593058818,-460.0,0.00020547,2]
[375234090,1753593058827,-151.0,0.00020547,2]
[375234091,1753593058836,-152.379709,0.00020547,2]
[375234092,1753593058845,-460.0,0.00020547,2]
[375234093,1753593058854,-543.35,0.00020547,2]
[375234094,1753593058863,-151.0,0.00020547,2]
[375234095,1753593058872,-460.0,0.00020547,2]
[375234096,1753593058881,-960.07,0.00020547,2]
[375234097,1753593058890,-151.0,0.00020547,2]
[375234098,1753593058899,-460.0,0.00020547,2]
[375234099,1753593058909,-460.0,0.00020547,2]
[375234100,1753593058918,-460.0,0.00020547,2]
[375234101,1753593058929,-460.0,0.00020547,2]
[375234102,1753593058939,-596.69,0.00020547,2]
[375234103,1753593058948,-151.0,0.00020547,2]
[375234104,1753593058959,-151.0,0.00020547,2]
[375234105,1753593058970,-460.0,0.00020547,2]
[375234106,1753593058982,-460.0,0.00020547,2]
[375234107,1753593058993,-460.0,0.00020547,2]
[375234108,1753593059004,-460.0,0.00020547,2]
[375234109,1753593059014,-460.0,0.00020547,2]
[375234110,1753593059022,-151.0,0.00020547,2]
[375234111,1753593059032,-460.0,0.00020547,2]
[375234112,1753593059041,-460.0,0.00020547,2]
[375234113,1753593059051,-460.0,0.00020547,2]
[375234114,1753593059061,-463.81038808,0.00020547,2]
[375234115,1753593059071,-460.0,0.00020547,2]
[375234116,1753593059080,-151.0,0.00020547,2]
[375234117,1753593059089,-520.04,0.00020547,2]
[375234118,1753593059098,-460.0,0.00020547,2]
[375234119,1753593059107,-151.0,0.00020547,2]
[375234120,1753593059117,-151.0,0.00020547,2]
[375234121,1753593059126,-460.0,0.00020547,2]
[375234122,1753593059135,-151.0,0.00020547,2]
[375234123,1753593059144,-460.0,0.00020547,2]
[375234124,1753593059153,-151.0,0.00020547,2]
[375234125,1753593059163,-1711.83,0.00020547,2]
[375234126,1753593059172,-151.0,0.00020547,2]
[375234127,1753593059183,-460.0,0.00020547,2]
[375234128,1753593059193,-460.0,0.00020547,2]
[375234129,1753593059204,-151.0,0.00020547,2]
[375234130,1753593059215,-1410.74,0.00020547,2]
[375234131,1753593059227,-152.196195,0.00020547,2]
[375234132,1753593059236,-492.9,0.00020547,2]
[375234133,1753593059245,-460.0,0.00020547,2]
[375234134,1753593059254,-478.9,0.00020547,2]
[375234135,1753593059263,-151.929359,0.00020547,2]
[375234136,1753593059273,-1486.35,0.00020547,2]
[375234137,1753593059282,-460.0,0.00020547,2]
[375234138,1753593059291,-151.667071,0.00020547,2]
[375234139,1753593059300,-727.55,0.00020547,2]
[375234140,1753593059309,-460.0,0.00020547,2]
[375234141,1753593059318,-479.82,0.00020547,2]
[375234142,1753593059409,-460.0,0.00020547,2]
[375234143,1753593059419,-1353.54,0.00020547,2]
[375234144,1753593059428,-151.0,0.00020547,2]
[375234145,1753593059439,-460.0,0.00020547,2]
[375234146,1753593059449,-1774.4,0.00020547,2]
[375234147,1753593059459,-151.0,0.00020547,2]
[375234148,1753593059468,-488.35,0.00020547,2]
[375234149,1753593059477,-460.0,0.00020547,2]
[375234150,1753593059487,-460.0,0.00020547,2]
[375234151,1753593059497,-152.537099,0.00020547,2]
[375234152,1753593059512,-642.71,0.00020547,2]
[375234153,1753593059521,-460.0,0.00020547,2]
[375234154,1753593059530,-471.76,0.00020547,2]
[375234155,1753593059542,-460.0,0.00020547,2]
[375234156,1753593059551,-151.0,0.00020547,2]
[375234157,1753593059561,-460.0,0.00020547,2]
[375234158,1753593059571,-460.0,0.00020547,2]
[375234159,1753593059580,-460.0,0.00020547,2]
[375234160,1753593059590,-1006.7,0.00020547,2]
[375234161,1753593059599,-460.0,0.00020547,2]
[375234162,1753593059608,-595.02,0.00020547,2]
[375234163,1753593059618,-466.25805262,0.00020547,2]
[375234164,1753593059629,-460.0,0.00020547,2]
[375234165,1753593059638,-460.0,0.00020547,2]
[375234166,1753593059648,-460.0,0.00020547,2]
[375234167,1753593059658,-151.0,0.00020547,2]
[375234168,1753593059669,-486.48,0.00020547,2]
[375234169,1753593059679,-460.0,0.00020547,2]
[375234170,1753593059690,-460.0,0.00020547,2]
[375234171,1753593059699,-494.61,0.00020547,2]
[375234172,1753593059708,-460.0,0.00020547,2]
[375234173,1753593059718,-151.0,0.00020547,2]
[375234174,1753593059727,-460.0,0.00020547,2]
[375234175,1753593059737,-151.0,0.00020547,2]
[375234176,1753593059746,-514.97,0.00020547,2]
[375234177,1753593059755,-151.0,0.00020547,2]
[375234178,1753593059765,-151.0,0.00020547,2]
[375234179,1753593059774,-460.0,0.00020547,2]
[375234180,1753593059783,-460.0,0.00020547,2]
[375234181,1753593059792,-460.0,0.00020547,2]
[375234182,1753593059801,-460.0,0.00020547,2]
[375234183,1753593059811,-460.0,0.00020547,2]
[375234184,1753593059821,-460.0,0.00020547,2]
[375234185,1753593059830,-568.48641063,0.00020547,2]
[375234186,1753593059839,-460.0,0.00020547,2]
[375234187,1753593059849,-460.0,0.00020547,2]
[375234188,1753593059858,-460.0,0.00020547,2]
[375234189,1753593059867,-460.0,0.00020547,2]
[375234190,1753593059879,-460.0,0.00020547,2]
[375234191,1753593059888,-1152.42,0.00020547,2]
[375234192,1753593059898,-460.0,0.00020547,2]
[375234193,1753593059909,-460.0,0.00020547,2]
[375234194,1753593059918,-530.21,0.00020547,2]
[375234195,1753593059928,-460.0,0.00020547,2]
[375234196,1753593059938,-469.19030137,0.00020547,2]
[375234197,1753593059948,-460.0,0.00020547,2]
[375234198,1753593059960,-460.0,0.00020547,2]
[375234199,1753593059970,-460.0,0.00020547,2]